[Event "Titled Tuesday Blitz November 22 Late 2022"]
[White "Jobava, Baadur"]
[Black "Guzman, Christopher"]
[WhiteFideId "13601520"]
[BlackFideId "6405096"]
[WhiteElo "2582"]
[BlackElo "2272"]
[Result "1-0"]
[Round "02"]
[TimeControl "180+1"]
[Date "2022.11.22"]
[WhiteClock "0:00:18"]
[BlackClock "0:00:44"]

1. e4 {[%clk 0:02:59]}  e5 {[%clk 0:02:57]} 2. Nf3 {[%clk 0:02:59]}  Nc6 {[%clk 0:02:56]} 3. Bc4 {[%clk 0:03:00]}  Be7 {[%clk 0:02:56]} 4. d3 {[%clk 0:02:58]}  Nf6 {[%clk 0:02:56]} 5. Nc3 {[%clk 0:02:58]}  O-O {[%clk 0:02:56]} 6. a4 {[%clk 0:02:58]}  d6 {[%clk 0:02:56]} 7. h3 {[%clk 0:02:59]}  Be6 {[%clk 0:02:55]} 8. O-O {[%clk 0:02:58]}  Qd7 {[%clk 0:02:50]} 9. a5 {[%clk 0:02:57]}  a6 {[%clk 0:02:49]} 10. Re1 {[%clk 0:02:58]}  Rae8 {[%clk 0:02:49]} 11. b3 {[%clk 0:02:52]}  Bd8 {[%clk 0:02:47]} 12. Bg5 {[%clk 0:02:46]}  h6 {[%clk 0:02:46]} 13. Bxf6 {[%clk 0:02:47]}  Bxf6 {[%clk 0:02:46]} 14. Ne2 {[%clk 0:02:42]}  g6 {[%clk 0:02:45]} 15. Ng3 {[%clk 0:02:41]}  Bg7 {[%clk 0:02:45]} 16. c3 {[%clk 0:02:41]}  Kh7 {[%clk 0:02:44]} 17. b4 {[%clk 0:02:39]}  d5 {[%clk 0:02:41]} 18. Bb3 {[%clk 0:02:32]}  f5 {[%clk 0:02:37]} 19. Ba4 {[%clk 0:02:31]}  Qd6 {[%clk 0:02:28]} 20. b5 {[%clk 0:02:15]}  axb5 {[%clk 0:02:19]} 21. Bxb5 {[%clk 0:02:16]}  Ra8 {[%clk 0:02:17]} 22. a6 {[%clk 0:02:07]}  bxa6 {[%clk 0:02:14]} 23. Bxc6 {[%clk 0:02:07]}  Qxc6 {[%clk 0:02:14]} 24. exf5 {[%clk 0:02:08]}  Bxf5 {[%clk 0:02:05]} 25. Nxe5 {[%clk 0:02:08]}  Qxc3 {[%clk 0:02:04]} 26. Rc1 {[%clk 0:02:08]}  Qa5 {[%clk 0:02:02]} 27. Nxf5 {[%clk 0:01:57]}  Rxf5 {[%clk 0:02:01]} 28. d4 {[%clk 0:01:36]}  Raf8 {[%clk 0:01:51]} 29. Qg4 {[%clk 0:01:23]}  Bxe5 {[%clk 0:01:37]} 30. dxe5 {[%clk 0:01:17]}  Rxf2 {[%clk 0:01:33]} 31. e6 {[%clk 0:01:17]}  Qb6 {[%clk 0:01:20]} 32. Kh1 {[%clk 0:01:17]}  R2f6 {[%clk 0:01:13]} 33. e7 {[%clk 0:00:49]}  Re8 {[%clk 0:01:09]} 34. Qd7 {[%clk 0:00:48]}  Qb8 {[%clk 0:01:09]} 35. Rxc7 {[%clk 0:00:42]}  Rf7 {[%clk 0:01:07]} 36. Qxd5 {[%clk 0:00:26]}  Kg7 {[%clk 0:01:02]} 37. Rd7 {[%clk 0:00:24]}  Qb4 {[%clk 0:01:00]} 38. Qe5+ {[%clk 0:00:21]}  Kg8 {[%clk 0:01:00]} 39. Rd8 {[%clk 0:00:20]}  Qa4 {[%clk 0:00:54]} 40. Re4 {[%clk 0:00:18]}  Qc6 {[%clk 0:00:53]} 41. Qe6 {[%clk 0:00:19]}  Qc1+ {[%clk 0:00:49]} 42. Kh2 {[%clk 0:00:19]}  Qc7+ {[%clk 0:00:50]} 43. Re5 {[%clk 0:00:18]}  Rxd8 {[%clk 0:00:45]} 44. Qxg6+ {[%clk 0:00:18]}  Rg7 {[%clk 0:00:43]} 45. exd8=Q+ {[%clk 0:00:17]}  Qxd8 {[%clk 0:00:44]} 46. Re8+ {[%clk 0:00:18]} 1-0


[Site "https://www.chess.com"]

[Event "Titled Tuesday Blitz November 22 Late 2022"]
[White "Kaplan, Avi Harrison"]
[Black "Roque Sola, Jose Luis"]
[WhiteFideId "30934559"]
[BlackFideId "5120390"]
[WhiteElo "1983"]
[BlackElo "2117"]
[Result "1-0"]
[Round "02"]
[TimeControl "180+1"]
[Date "2022.11.23"]
[WhiteClock "0:01:58"]
[BlackClock "0:01:14"]

1. d4 {[%clk 0:03:00]}  Nf6 {[%clk 0:02:59]} 2. c4 {[%clk 0:03:00]}  g6 {[%clk 0:02:59]} 3. Nc3 {[%clk 0:03:01]}  d5 {[%clk 0:02:58]} 4. cxd5 {[%clk 0:03:02]}  Nxd5 {[%clk 0:02:59]} 5. Bd2 {[%clk 0:03:02]}  Bg7 {[%clk 0:02:58]} 6. e4 {[%clk 0:03:02]}  Nxc3 {[%clk 0:02:57]} 7. Bxc3 {[%clk 0:03:03]}  O-O {[%clk 0:02:57]} 8. Qd2 {[%clk 0:03:03]}  c5 {[%clk 0:02:52]} 9. d5 {[%clk 0:03:03]}  e5 {[%clk 0:02:30]} 10. h4 {[%clk 0:02:52]}  h5 {[%clk 0:02:30]} 11. f3 {[%clk 0:02:47]}  b6 {[%clk 0:02:21]} 12. O-O-O {[%clk 0:02:41]}  Ba6 {[%clk 0:02:17]} 13. Bxa6 {[%clk 0:02:34]}  Nxa6 {[%clk 0:02:15]} 14. g4 {[%clk 0:02:34]}  Kh7 {[%clk 0:01:53]} 15. Kb1 {[%clk 0:02:32]}  b5 {[%clk 0:01:47]} 16. gxh5 {[%clk 0:02:31]}  gxh5 {[%clk 0:01:45]} 17. Ba5 {[%clk 0:02:16]}  Qd6 {[%clk 0:01:40]} 18. Nh3 {[%clk 0:02:14]}  f6 {[%clk 0:01:34]} 19. Rhg1 {[%clk 0:02:12]}  Bh6 {[%clk 0:01:31]} 20. Qe2 {[%clk 0:02:03]}  c4 {[%clk 0:01:27]} 21. f4 {[%clk 0:02:01]}  exf4 {[%clk 0:01:23]} 22. Qxh5 {[%clk 0:02:00]}  Qe5 {[%clk 0:01:14]} 23. Qg6+ {[%clk 0:01:58]} 1-0


[Site "https://www.chess.com"]

[Event "Titled Tuesday Blitz November 22 Late 2022"]
[White "Keymer, Vincent"]
[Black "Sokolovsky, Yahli"]
[WhiteFideId "12940690"]
[BlackFideId "2820242"]
[WhiteElo "2600"]
[BlackElo "2316"]
[Result "1-0"]
[Round "02"]
[TimeControl "180+1"]
[Date "2022.11.22"]
[WhiteClock "0:00:09"]
[BlackClock "0:00:06"]

1. g3 {[%clk 0:03:00]}  g6 {[%clk 0:02:51]} 2. Bg2 {[%clk 0:02:59]}  Bg7 {[%clk 0:02:50]} 3. d4 {[%clk 0:02:57]}  d5 {[%clk 0:02:41]} 4. Nf3 {[%clk 0:02:56]}  Bf5 {[%clk 0:02:40]} 5. O-O {[%clk 0:02:45]}  Nf6 {[%clk 0:02:40]} 6. c4 {[%clk 0:02:45]}  c6 {[%clk 0:02:37]} 7. cxd5 {[%clk 0:02:20]}  cxd5 {[%clk 0:02:37]} 8. Nc3 {[%clk 0:02:17]}  O-O {[%clk 0:02:37]} 9. Qb3 {[%clk 0:02:16]}  Qb6 {[%clk 0:02:11]} 10. Nxd5 {[%clk 0:02:13]}  Nxd5 {[%clk 0:02:11]} 11. Qxd5 {[%clk 0:02:14]}  Nc6 {[%clk 0:02:05]} 12. e3 {[%clk 0:02:04]}  Nb4 {[%clk 0:01:58]} 13. Qb3 {[%clk 0:01:44]}  Nc2 {[%clk 0:01:50]} 14. Bd2 {[%clk 0:01:44]}  Nxa1 {[%clk 0:01:49]} 15. Rxa1 {[%clk 0:01:42]}  Qxb3 {[%clk 0:01:44]} 16. axb3 {[%clk 0:01:43]}  Be4 {[%clk 0:01:44]} 17. Bc3 {[%clk 0:01:41]}  a6 {[%clk 0:01:42]} 18. b4 {[%clk 0:01:41]}  Rac8 {[%clk 0:01:41]} 19. Ne1 {[%clk 0:01:39]}  Bxg2 {[%clk 0:01:41]} 20. Kxg2 {[%clk 0:01:40]}  Rfd8 {[%clk 0:01:18]} 21. Nd3 {[%clk 0:01:39]}  e5 {[%clk 0:01:08]} 22. Nxe5 {[%clk 0:01:39]}  Bxe5 {[%clk 0:01:08]} 23. dxe5 {[%clk 0:01:40]}  Kf8 {[%clk 0:01:09]} 24. g4 {[%clk 0:01:36]}  Ke7 {[%clk 0:01:08]} 25. f4 {[%clk 0:01:32]}  Ke6 {[%clk 0:01:08]} 26. Kf3 {[%clk 0:01:32]}  Kd5 {[%clk 0:01:07]} 27. h4 {[%clk 0:01:17]}  Ke6 {[%clk 0:01:03]} 28. h5 {[%clk 0:01:12]}  gxh5 {[%clk 0:00:22]} 29. f5+ {[%clk 0:01:06]}  Ke7 {[%clk 0:00:22]} 30. gxh5 {[%clk 0:00:52]}  Rg8 {[%clk 0:00:22]} 31. Kf4 {[%clk 0:00:43]}  Rcd8 {[%clk 0:00:18]} 32. Bd4 {[%clk 0:00:42]}  Rg2 {[%clk 0:00:13]} 33. Rc1 {[%clk 0:00:41]}  Kd7 {[%clk 0:00:12]} 34. Rc5 {[%clk 0:00:38]}  Rdg8 {[%clk 0:00:12]} 35. Rd5+ {[%clk 0:00:31]}  Kc6 {[%clk 0:00:11]} 36. Rd6+ {[%clk 0:00:29]}  Kb5 {[%clk 0:00:10]} 37. e6 {[%clk 0:00:18]}  fxe6 {[%clk 0:00:05]} 38. Rxe6 {[%clk 0:00:19]}  Kxb4 {[%clk 0:00:04]} 39. Rb6+ {[%clk 0:00:19]}  Kc4 {[%clk 0:00:05]} 40. Rxb7 {[%clk 0:00:20]}  Kd5 {[%clk 0:00:04]} 41. Rd7+ {[%clk 0:00:18]}  Kc6 {[%clk 0:00:05]} 42. Rxh7 {[%clk 0:00:19]}  Kd5 {[%clk 0:00:05]} 43. Rd7+ {[%clk 0:00:18]}  Kc6 {[%clk 0:00:06]} 44. Re7 {[%clk 0:00:18]}  Kd5 {[%clk 0:00:06]} 45. Re5+ {[%clk 0:00:19]}  Kd6 {[%clk 0:00:07]} 46. Re6+ {[%clk 0:00:17]}  Kd5 {[%clk 0:00:07]} 47. Rg6 {[%clk 0:00:18]}  Rf2+ {[%clk 0:00:04]} 48. Kg3 {[%clk 0:00:13]}  Rxg6+ {[%clk 0:00:04]} 49. fxg6 {[%clk 0:00:13]}  Rf1 {[%clk 0:00:05]} 50. g7 {[%clk 0:00:10]}  Rg1+ {[%clk 0:00:06]} 51. Kf2 {[%clk 0:00:08]}  Rg5 {[%clk 0:00:06]} 52. h6 {[%clk 0:00:09]} 1-0


[Site "https://www.chess.com"]

[Event "Titled Tuesday Blitz November 22 Late 2022"]
[White "Klenburg, Michael"]
[Black "Acosta Cruz, Oscar Yosimar"]
[WhiteFideId "14102072"]
[BlackFideId "5111269"]
[WhiteElo "2405"]
[BlackElo "2147"]
[Result "1-0"]
[Round "02"]
[TimeControl "180+1"]
[Date "2022.11.23"]
[WhiteClock "0:01:27"]
[BlackClock "0:01:23"]

1. e4 {[%clk 0:02:57]}  c5 {[%clk 0:02:57]} 2. d3 {[%clk 0:02:56]}  d6 {[%clk 0:02:56]} 3. g3 {[%clk 0:02:56]}  g6 {[%clk 0:02:56]} 4. Bg2 {[%clk 0:02:56]}  Bg7 {[%clk 0:02:57]} 5. f4 {[%clk 0:02:56]}  e6 {[%clk 0:02:57]} 6. Nf3 {[%clk 0:02:56]}  Ne7 {[%clk 0:02:57]} 7. O-O {[%clk 0:02:56]}  O-O {[%clk 0:02:58]} 8. c3 {[%clk 0:02:57]}  Nbc6 {[%clk 0:02:58]} 9. Be3 {[%clk 0:02:56]}  b6 {[%clk 0:02:52]} 10. Bf2 {[%clk 0:02:56]}  Rb8 {[%clk 0:02:52]} 11. Re1 {[%clk 0:02:56]}  Bb7 {[%clk 0:02:52]} 12. a4 {[%clk 0:02:55]}  d5 {[%clk 0:02:51]} 13. e5 {[%clk 0:02:55]}  a6 {[%clk 0:02:50]} 14. Nbd2 {[%clk 0:02:52]}  b5 {[%clk 0:02:50]} 15. Bxc5 {[%clk 0:02:50]}  Re8 {[%clk 0:02:49]} 16. axb5 {[%clk 0:02:48]}  axb5 {[%clk 0:02:49]} 17. b4 {[%clk 0:02:46]}  Ra8 {[%clk 0:02:46]} 18. Nb3 {[%clk 0:02:44]}  Qd7 {[%clk 0:02:42]} 19. Bf2 {[%clk 0:02:41]}  h5 {[%clk 0:02:38]} 20. h3 {[%clk 0:02:38]}  Qc7 {[%clk 0:02:36]} 21. Nc5 {[%clk 0:02:36]}  Nc8 {[%clk 0:02:31]} 22. g4 {[%clk 0:02:35]}  hxg4 {[%clk 0:02:31]} 23. hxg4 {[%clk 0:02:34]}  Nb6 {[%clk 0:02:31]} 24. Qd2 {[%clk 0:02:29]}  Bf8 {[%clk 0:02:23]} 25. Nxb7 {[%clk 0:02:12]}  Qxb7 {[%clk 0:02:22]} 26. Rxa8 {[%clk 0:02:08]}  Rxa8 {[%clk 0:02:22]} 27. f5 {[%clk 0:02:08]}  Ra3 {[%clk 0:02:15]} 28. Qg5 {[%clk 0:01:51]}  exf5 {[%clk 0:01:52]} 29. gxf5 {[%clk 0:01:50]}  Ne7 {[%clk 0:01:37]} 30. Nd4 {[%clk 0:01:41]}  Rxc3 {[%clk 0:01:28]} 31. e6 {[%clk 0:01:38]}  Rxd3 {[%clk 0:01:24]} 32. exf7+ {[%clk 0:01:28]}  Kxf7 {[%clk 0:01:23]} 33. fxg6+ {[%clk 0:01:28]}  Nxg6 {[%clk 0:01:23]} 34. Qf5+ {[%clk 0:01:27]} 1-0


[Site "https://www.chess.com"]

[Event "Titled Tuesday Blitz November 22 Late 2022"]
[White "Koellner, Ruben Gideon"]
[Black "Zhigalko, Sergei"]
[WhiteFideId "12993093"]
[BlackFideId "13502956"]
[WhiteElo "2600"]
[BlackElo "2874"]
[Result "0-1"]
[Round "02"]
[TimeControl "180+1"]
[Date "2022.11.23"]
[WhiteClock "0:02:26"]
[BlackClock "0:02:43"]

1. d4 {[%clk 0:03:00]}  Nf6 {[%clk 0:03:00]} 2. Nf3 {[%clk 0:03:00]}  e6 {[%clk 0:03:00]} 3. Nbd2 {[%clk 0:03:00]}  d5 {[%clk 0:02:59]} 4. e3 {[%clk 0:03:00]}  b6 {[%clk 0:03:00]} 5. c3 {[%clk 0:02:58]}  Bb7 {[%clk 0:03:00]} 6. Bd3 {[%clk 0:02:58]}  Bd6 {[%clk 0:03:00]} 7. Ne5 {[%clk 0:02:58]}  O-O {[%clk 0:02:59]} 8. f4 {[%clk 0:02:58]}  Ne4 {[%clk 0:02:54]} 9. Qf3 {[%clk 0:02:57]}  f5 {[%clk 0:02:54]} 10. O-O {[%clk 0:02:54]}  Nd7 {[%clk 0:02:51]} 11. Qh3 {[%clk 0:02:52]}  Ndf6 {[%clk 0:02:48]} 12. Ndf3 {[%clk 0:02:53]}  Qe7 {[%clk 0:02:46]} 13. Bd2 {[%clk 0:02:52]}  Bxe5 {[%clk 0:02:43]} 14. fxe5 {[%clk 0:02:51]}  Ng4 {[%clk 0:02:43]} 15. Qh4 {[%clk 0:02:25]}  Qxh4 {[%clk 0:02:42]} 16. Nxh4 {[%clk 0:02:26]}  Nxd2 {[%clk 0:02:43]} 0-1


[Site "https://www.chess.com"]

[Event "Titled Tuesday Blitz November 22 Late 2022"]
[White "Korchmar, Vasiliy"]
[Black "Onslow, Alfie"]
[WhiteFideId "24131750"]
[BlackFideId "436976"]
[WhiteElo "2370"]
[BlackElo "2015"]
[Result "0-1"]
[Round "02"]
[TimeControl "180+1"]
[Date "2022.11.23"]
[WhiteClock "0:00:01"]
[BlackClock "0:00:56"]

1. e4 {[%clk 0:03:00]}  g6 {[%clk 0:03:00]} 2. d4 {[%clk 0:03:00]}  Bg7 {[%clk 0:03:00]} 3. Nc3 {[%clk 0:03:01]}  c6 {[%clk 0:03:01]} 4. Be3 {[%clk 0:03:00]}  d5 {[%clk 0:03:01]} 5. e5 {[%clk 0:03:01]}  h5 {[%clk 0:03:01]} 6. Qd2 {[%clk 0:03:00]}  Nh6 {[%clk 0:03:01]} 7. O-O-O {[%clk 0:03:00]}  Qa5 {[%clk 0:03:00]} 8. Kb1 {[%clk 0:02:54]}  b5 {[%clk 0:03:00]} 9. Bd3 {[%clk 0:02:29]}  b4 {[%clk 0:02:55]} 10. Nce2 {[%clk 0:02:29]}  Bf5 {[%clk 0:02:50]} 11. Nc1 {[%clk 0:02:18]}  e6 {[%clk 0:02:48]} 12. Bxf5 {[%clk 0:02:06]}  Nxf5 {[%clk 0:02:48]} 13. Nd3 {[%clk 0:02:07]}  Na6 {[%clk 0:02:45]} 14. Ne2 {[%clk 0:02:04]}  Nxe3 {[%clk 0:02:37]} 15. fxe3 {[%clk 0:02:00]}  Bh6 {[%clk 0:02:33]} 16. Rhf1 {[%clk 0:01:56]}  c5 {[%clk 0:02:24]} 17. dxc5 {[%clk 0:01:50]}  Nxc5 {[%clk 0:02:25]} 18. Nxc5 {[%clk 0:01:07]}  Qxc5 {[%clk 0:02:25]} 19. Nd4 {[%clk 0:01:08]}  a5 {[%clk 0:02:22]} 20. Rf6 {[%clk 0:01:04]}  O-O {[%clk 0:02:15]} 21. Rdf1 {[%clk 0:00:56]}  Bg7 {[%clk 0:02:07]} 22. R6f2 {[%clk 0:00:24]}  Bxe5 {[%clk 0:02:01]} 23. Qd3 {[%clk 0:00:21]}  Bg7 {[%clk 0:01:53]} 24. h3 {[%clk 0:00:17]}  e5 {[%clk 0:01:50]} 25. Nb3 {[%clk 0:00:14]}  Qc6 {[%clk 0:01:44]} 26. g4 {[%clk 0:00:14]}  h4 {[%clk 0:01:34]} 27. g5 {[%clk 0:00:13]}  a4 {[%clk 0:01:34]} 28. Nc1 {[%clk 0:00:11]}  e4 {[%clk 0:01:33]} 29. Qd2 {[%clk 0:00:11]}  a3 {[%clk 0:01:31]} 30. Rf6 {[%clk 0:00:10]}  Bxf6 {[%clk 0:01:10]} 31. Rxf6 {[%clk 0:00:11]}  Qc4 {[%clk 0:01:06]} 32. b3 {[%clk 0:00:09]}  Qc3 {[%clk 0:01:06]} 33. Qxc3 {[%clk 0:00:10]}  bxc3 {[%clk 0:01:07]} 34. Ne2 {[%clk 0:00:10]}  Rfc8 {[%clk 0:01:05]} 35. Rd6 {[%clk 0:00:04]}  Rc5 {[%clk 0:01:05]} 36. Nf4 {[%clk 0:00:04]}  d4 {[%clk 0:01:03]} 37. Rxd4 {[%clk 0:00:03]}  Rxg5 {[%clk 0:01:02]} 38. Rd1 {[%clk 0:00:01]}  Rg3 {[%clk 0:01:00]} 39. Nd5 {[%clk 0:00:01]}  Rd8 {[%clk 0:00:56]} 0-1


[Site "https://www.chess.com"]

[Event "Titled Tuesday Blitz November 22 Late 2022"]
[White "Kulkarni, Rakesh"]
[Black "Kopylov, Alexander A."]
[WhiteFideId "5037077"]
[BlackFideId "4164857"]
[WhiteElo "2246"]
[BlackElo "2436"]
[Result "0-1"]
[Round "02"]
[TimeControl "180+1"]
[Date "2022.11.23"]
[WhiteClock "0:00:05"]
[BlackClock "0:00:10"]

1. e4 {[%clk 0:02:56]}  e5 {[%clk 0:03:00]} 2. d4 {[%clk 0:02:56]}  exd4 {[%clk 0:02:59]} 3. Qxd4 {[%clk 0:02:57]}  Nc6 {[%clk 0:02:59]} 4. Qe3 {[%clk 0:02:58]}  Nf6 {[%clk 0:02:55]} 5. Nc3 {[%clk 0:02:56]}  Bb4 {[%clk 0:02:55]} 6. Bd2 {[%clk 0:02:56]}  O-O {[%clk 0:02:53]} 7. O-O-O {[%clk 0:02:55]}  Re8 {[%clk 0:02:53]} 8. Qg3 {[%clk 0:02:55]}  d6 {[%clk 0:02:51]} 9. f3 {[%clk 0:02:47]}  Be6 {[%clk 0:02:50]} 10. h4 {[%clk 0:02:43]}  Kh8 {[%clk 0:02:44]} 11. h5 {[%clk 0:02:43]}  h6 {[%clk 0:02:44]} 12. Qf2 {[%clk 0:02:29]}  Bc5 {[%clk 0:02:43]} 13. Qe1 {[%clk 0:02:29]}  Ne5 {[%clk 0:02:36]} 14. Be2 {[%clk 0:02:14]}  Nc4 {[%clk 0:02:30]} 15. Bxc4 {[%clk 0:02:05]}  Bxc4 {[%clk 0:02:31]} 16. g4 {[%clk 0:02:05]}  Nh7 {[%clk 0:02:21]} 17. Nh3 {[%clk 0:02:01]}  d5 {[%clk 0:02:18]} 18. g5 {[%clk 0:01:53]}  hxg5 {[%clk 0:02:16]} 19. Qg3 {[%clk 0:01:46]}  f6 {[%clk 0:01:50]} 20. exd5 {[%clk 0:01:40]}  Be3 {[%clk 0:01:38]} 21. Nf2 {[%clk 0:01:33]}  Qd6 {[%clk 0:01:33]} 22. Qg2 {[%clk 0:01:17]}  f5 {[%clk 0:01:09]} 23. Kb1 {[%clk 0:00:57]}  b5 {[%clk 0:01:01]} 24. b3 {[%clk 0:00:42]}  b4 {[%clk 0:00:55]} 25. Na4 {[%clk 0:00:39]}  Bxd5 {[%clk 0:00:50]} 26. Bxe3 {[%clk 0:00:33]}  Rxe3 {[%clk 0:00:51]} 27. h6 {[%clk 0:00:22]}  gxh6 {[%clk 0:00:51]} 28. Qh3 {[%clk 0:00:18]}  Rf8 {[%clk 0:00:48]} 29. Rxd5 {[%clk 0:00:15]}  Qxd5 {[%clk 0:00:47]} 30. Qxh6 {[%clk 0:00:15]}  Qg8 {[%clk 0:00:41]} 31. Nc5 {[%clk 0:00:15]}  Qg7 {[%clk 0:00:35]} 32. Qh5 {[%clk 0:00:14]}  Rfe8 {[%clk 0:00:35]} 33. Nfd3 {[%clk 0:00:14]}  g4 {[%clk 0:00:29]} 34. Ne4 {[%clk 0:00:13]}  R3xe4 {[%clk 0:00:16]} 35. fxe4 {[%clk 0:00:13]}  Rg8 {[%clk 0:00:14]} 36. exf5 {[%clk 0:00:13]}  g3 {[%clk 0:00:14]} 37. f6 {[%clk 0:00:13]}  Qg6 {[%clk 0:00:14]} 38. f7 {[%clk 0:00:14]}  Qxh5 {[%clk 0:00:12]} 39. fxg8=Q+ {[%clk 0:00:14]}  Kxg8 {[%clk 0:00:12]} 40. Rxh5 {[%clk 0:00:14]}  g2 {[%clk 0:00:13]} 41. Rd5 {[%clk 0:00:04]}  g1=Q+ {[%clk 0:00:13]} 42. Kb2 {[%clk 0:00:05]}  Qg7+ {[%clk 0:00:13]} 43. Kb1 {[%clk 0:00:05]}  Qc3 {[%clk 0:00:13]} 44. Rc5 {[%clk 0:00:04]}  Qg7 {[%clk 0:00:12]} 45. Nxb4 {[%clk 0:00:04]}  Nf6 {[%clk 0:00:13]} 46. Nd3 {[%clk 0:00:04]}  Ne4 {[%clk 0:00:13]} 47. Rc6 {[%clk 0:00:05]}  Nc3+ {[%clk 0:00:13]} 48. Kc1 {[%clk 0:00:05]}  Qg5+ {[%clk 0:00:12]} 49. Kb2 {[%clk 0:00:05]}  Nd1+ {[%clk 0:00:13]} 50. Kb1 {[%clk 0:00:05]}  Qg1 {[%clk 0:00:13]} 51. Rxc7 {[%clk 0:00:04]}  Ne3+ {[%clk 0:00:13]} 52. Kb2 {[%clk 0:00:05]}  Qh2 {[%clk 0:00:13]} 53. Rc8+ {[%clk 0:00:05]}  Kf7 {[%clk 0:00:13]} 54. a4 {[%clk 0:00:05]}  Qh6 {[%clk 0:00:11]} 55. Rc7+ {[%clk 0:00:04]}  Ke8 {[%clk 0:00:11]} 56. Rxa7 {[%clk 0:00:05]}  Qc6 {[%clk 0:00:12]} 57. Nb4 {[%clk 0:00:03]}  Qf6+ {[%clk 0:00:11]} 58. c3 {[%clk 0:00:03]}  Nd1+ {[%clk 0:00:10]} 59. Ka3 {[%clk 0:00:04]}  Qxc3 {[%clk 0:00:10]} 60. Ra8+ {[%clk 0:00:04]}  Kd7 {[%clk 0:00:09]} 61. Ra7+ {[%clk 0:00:04]}  Kc8 {[%clk 0:00:10]} 62. Ra8+ {[%clk 0:00:04]}  Kb7 {[%clk 0:00:10]} 63. Rd8 {[%clk 0:00:05]}  Qb2# {[%clk 0:00:10]} 0-1


[Site "https://www.chess.com"]

[Event "Titled Tuesday Blitz November 22 Late 2022"]
[White "Manelyuk, Daniil"]
[Black "Fier, Alexandr"]
[WhiteFideId "44173920"]
[BlackFideId "2107139"]
[WhiteElo "2209"]
[BlackElo "2617"]
[Result "1-0"]
[Round "02"]
[TimeControl "180+1"]
[Date "2022.11.23"]
[WhiteClock "0:00:07"]
[BlackClock "0:01:11"]

1. e4 {[%clk 0:02:56]}  Nf6 {[%clk 0:02:59]} 2. e5 {[%clk 0:02:56]}  Nd5 {[%clk 0:02:59]} 3. d4 {[%clk 0:02:55]}  d6 {[%clk 0:03:00]} 4. c4 {[%clk 0:02:54]}  Nb6 {[%clk 0:03:00]} 5. f4 {[%clk 0:02:54]}  g6 {[%clk 0:02:59]} 6. Nc3 {[%clk 0:02:54]}  Bg7 {[%clk 0:02:59]} 7. Be3 {[%clk 0:02:52]}  O-O {[%clk 0:02:59]} 8. Nf3 {[%clk 0:02:52]}  Be6 {[%clk 0:02:58]} 9. b3 {[%clk 0:02:37]}  dxe5 {[%clk 0:02:53]} 10. fxe5 {[%clk 0:02:33]}  c5 {[%clk 0:02:53]} 11. d5 {[%clk 0:02:19]}  Bg4 {[%clk 0:02:52]} 12. Bf4 {[%clk 0:02:17]}  N8d7 {[%clk 0:02:43]} 13. Qe2 {[%clk 0:02:09]}  e6 {[%clk 0:02:34]} 14. d6 {[%clk 0:01:30]}  f6 {[%clk 0:02:31]} 15. Ne4 {[%clk 0:01:11]}  fxe5 {[%clk 0:02:26]} 16. Bg5 {[%clk 0:01:09]}  Qe8 {[%clk 0:02:24]} 17. h3 {[%clk 0:01:05]}  Bxf3 {[%clk 0:02:22]} 18. gxf3 {[%clk 0:01:05]}  Nf6 {[%clk 0:02:19]} 19. Bxf6 {[%clk 0:00:55]}  Bxf6 {[%clk 0:02:13]} 20. O-O-O {[%clk 0:00:50]}  Nd7 {[%clk 0:02:12]} 21. Bg2 {[%clk 0:00:46]}  a6 {[%clk 0:02:11]} 22. Kb1 {[%clk 0:00:45]}  b5 {[%clk 0:02:11]} 23. cxb5 {[%clk 0:00:44]}  axb5 {[%clk 0:02:11]} 24. Qxb5 {[%clk 0:00:45]}  Qf7 {[%clk 0:02:08]} 25. f4 {[%clk 0:00:40]}  Rfb8 {[%clk 0:02:08]} 26. Qc4 {[%clk 0:00:20]}  Rb4 {[%clk 0:02:02]} 27. Qc2 {[%clk 0:00:18]}  Rc8 {[%clk 0:02:02]} 28. Nxf6+ {[%clk 0:00:17]}  Qxf6 {[%clk 0:02:01]} 29. fxe5 {[%clk 0:00:18]}  Qxe5 {[%clk 0:02:01]} 30. Rhe1 {[%clk 0:00:18]}  Qf6 {[%clk 0:02:01]} 31. Rxe6 {[%clk 0:00:18]}  Qxe6 {[%clk 0:01:38]} 32. Bd5 {[%clk 0:00:17]}  Qxd5 {[%clk 0:01:39]} 33. Rxd5 {[%clk 0:00:18]}  c4 {[%clk 0:01:40]} 34. Rd4 {[%clk 0:00:14]}  Rb6 {[%clk 0:01:33]} 35. Qe4 {[%clk 0:00:10]}  cxb3 {[%clk 0:01:24]} 36. Qe6+ {[%clk 0:00:10]}  Kh8 {[%clk 0:01:24]} 37. axb3 {[%clk 0:00:09]}  Rb7 {[%clk 0:01:21]} 38. Rc4 {[%clk 0:00:07]}  Rcb8 {[%clk 0:01:20]} 39. Kc2 {[%clk 0:00:06]}  Nf8 {[%clk 0:01:17]} 40. Qf6+ {[%clk 0:00:06]}  Kg8 {[%clk 0:01:13]} 41. Rc7 {[%clk 0:00:07]}  Rxc7+ {[%clk 0:01:12]} 42. dxc7 {[%clk 0:00:07]}  Rc8 {[%clk 0:01:12]} 43. Qe7 {[%clk 0:00:08]}  g5 {[%clk 0:01:12]} 44. b4 {[%clk 0:00:08]}  g4 {[%clk 0:01:12]} 45. hxg4 {[%clk 0:00:08]}  h5 {[%clk 0:01:12]} 46. gxh5 {[%clk 0:00:08]}  Kh8 {[%clk 0:01:12]} 47. h6 {[%clk 0:00:08]}  Ne6 {[%clk 0:01:12]} 48. Qxe6 {[%clk 0:00:08]}  Rxc7+ {[%clk 0:01:13]} 49. Kd3 {[%clk 0:00:08]}  Rf7 {[%clk 0:01:13]} 50. Qe5+ {[%clk 0:00:07]}  Kh7 {[%clk 0:01:13]} 51. b5 {[%clk 0:00:07]}  Rd7+ {[%clk 0:01:12]} 52. Kc4 {[%clk 0:00:06]}  Kg8 {[%clk 0:01:11]} 53. Qe6+ {[%clk 0:00:07]}  Kh8 {[%clk 0:01:11]} 54. Qxd7 {[%clk 0:00:07]} 1-0


[Site "https://www.chess.com"]